[Event "*** Titled Tuesday Blitz"]
[Site "Chess.com"]
[Date "2020.05.19"]
[Round "4"]
[White "WildBizon"]
[Black "LogoCzar"]
[Result "1-0"]
[WhiteElo "2616"]
[BlackElo "2448"]
[TimeControl "180+1"]
[EndTime "12:39:24 PDT"]
[Termination "WildBizon won by resignation"]

1. e4 {[%clk 0:03:00.9]} 1... e5 {[%clk 0:02:59.5]} 2. Nf3 {[%clk 0:03:00.9]}
2... Nc6 {[%clk 0:03:00]} 3. Bb5 {[%clk 0:03:01]} 3... Nf6 {[%clk 0:03:00.4]} 4.
O-O {[%clk 0:03:00.9]} 4... Nxe4 {[%clk 0:03:00.5]} 5. Re1 {[%clk 0:03:01.4]}
5... Nd6 {[%clk 0:02:58.8]} 6. Nxe5 {[%clk 0:03:02]} 6... Be7 {[%clk 0:02:58.5]}
7. Bf1 {[%clk 0:03:01.6]} 7... Nxe5 {[%clk 0:02:58.7]} 8. Rxe5 {[%clk
0:03:01.5]} 8... O-O {[%clk 0:02:58.9]} 9. d4 {[%clk 0:03:01.9]} 9... Ne8 {[%clk
0:02:55.7]} 10. d5 {[%clk 0:02:59.6]} 10... Bc5 {[%clk 0:02:55.1]} 11. Re1
{[%clk 0:02:56.7]} 11... d6 {[%clk 0:02:55.3]} 12. Qf3 {[%clk 0:02:53.6]} 12...
Qf6 {[%clk 0:02:46.6]} 13. Nd2 {[%clk 0:02:52.5]} 13... Bf5 {[%clk 0:02:38.9]}
14. c3 {[%clk 0:02:50.2]} 14... Qg6 {[%clk 0:02:35]} 15. Ne4 {[%clk 0:02:42.6]}
15... Bxe4 {[%clk 0:02:15.6]} 16. Rxe4 {[%clk 0:02:42.5]} 16... Nf6 {[%clk
0:02:14.4]} 17. Re2 {[%clk 0:02:38.1]} 17... Rae8 {[%clk 0:02:06.5]} 18. Bf4
{[%clk 0:02:32.1]} 18... Rxe2 {[%clk 0:01:55.6]} 19. Bxe2 {[%clk 0:02:26.3]}
19... Qe4 {[%clk 0:01:45.1]} 20. b4 {[%clk 0:02:04.7]} 20... Bb6 {[%clk
0:01:30.9]} 21. Rd1 {[%clk 0:02:00.5]} 21... Re8 {[%clk 0:01:27.6]} 22. Kf1
{[%clk 0:02:00.7]} 22... Qc2 {[%clk 0:01:05.5]} 23. Bb5 {[%clk 0:01:53]} 23...
Re4 {[%clk 0:00:58.9]} 24. Bd3 {[%clk 0:01:48.7]} 24... Qxd1+ {[%clk 0:00:38.4]}
25. Qxd1 {[%clk 0:01:47.6]} 25... Rxf4 {[%clk 0:00:38.6]} 26. f3 {[%clk
0:01:46.1]} 26... Nxd5 {[%clk 0:00:38.2]} 27. Bxh7+ {[%clk 0:01:45.4]} 27...
Kxh7 {[%clk 0:00:36.5]} 28. Qxd5 {[%clk 0:01:46.3]} 28... Kg6 {[%clk 0:00:15.8]}
29. Ke2 {[%clk 0:01:44.1]} 29... Rf5 {[%clk 0:00:14.1]} 30. Qxb7 {[%clk
0:01:42.4]} 30... Re5+ {[%clk 0:00:13.1]} 31. Kd2 {[%clk 0:01:42.4]} 31... Rg5
{[%clk 0:00:11.3]} 32. g3 {[%clk 0:01:41.6]} 32... Re5 {[%clk 0:00:10.2]} 33. f4
{[%clk 0:01:40.2]} 33... Rh5 {[%clk 0:00:09.3]} 34. h4 {[%clk 0:01:39.4]} 34...
Rb5 {[%clk 0:00:06.8]} 35. Qe4+ {[%clk 0:01:35.9]} 35... Kf6 {[%clk 0:00:05.5]}
36. a4 {[%clk 0:01:33]} 36... Rf5 {[%clk 0:00:04.8]} 37. g4 {[%clk 0:01:30.8]}
1-0

[Event "*** Titled Tuesday Blitz"]
[Site "Chess.com"]
[Date "2020.05.19"]
[Round "4"]
[White "Harsha_Bharathakoti"]
[Black "CrushingKings"]
[Result "1-0"]
[WhiteElo "2750"]
[BlackElo "2504"]
[TimeControl "180+1"]
[EndTime "12:39:28 PDT"]
[Termination "Harsha_Bharathakoti won by resignation"]

1. e4 {[%clk 0:02:59.8]} 1... c6 {[%clk 0:02:59.2]} 2. Nc3 {[%clk 0:02:59.2]}
2... g6 {[%clk 0:02:59.8]} 3. Nf3 {[%clk 0:03:00.1]} 3... Bg7 {[%clk 0:03:00.4]}
4. d4 {[%clk 0:02:55]} 4... d5 {[%clk 0:03:00.7]} 5. Be2 {[%clk 0:02:55.1]} 5...
Nh6 {[%clk 0:02:59.9]} 6. O-O {[%clk 0:02:53.8]} 6... O-O {[%clk 0:02:59]} 7. h3
{[%clk 0:02:51.6]} 7... f6 {[%clk 0:02:58.4]} 8. Re1 {[%clk 0:02:25]} 8... Nf7
{[%clk 0:02:58.4]} 9. Bf1 {[%clk 0:02:14.8]} 9... a6 {[%clk 0:02:57.3]} 10. a4
{[%clk 0:02:14.3]} 10... a5 {[%clk 0:02:54.8]} 11. Bf4 {[%clk 0:02:02.3]} 11...
Re8 {[%clk 0:02:53.6]} 12. Bh2 {[%clk 0:02:02.3]} 12... Na6 {[%clk 0:02:51.2]}
13. Qd2 {[%clk 0:01:33.7]} 13... Nb4 {[%clk 0:02:49.3]} 14. exd5 {[%clk
0:01:34.1]} 14... cxd5 {[%clk 0:02:46.4]} 15. Nb5 {[%clk 0:01:34.6]} 15... e5
{[%clk 0:02:42.4]} 16. dxe5 {[%clk 0:01:34.5]} 16... fxe5 {[%clk 0:02:43.3]} 17.
Rad1 {[%clk 0:01:30.7]} 17... Bf5 {[%clk 0:02:05.3]} 18. c3 {[%clk 0:01:22.4]}
18... Nc2 {[%clk 0:02:03.8]} 19. Re2 {[%clk 0:01:22.9]} 19... Bh6 {[%clk
0:02:03.8]} 20. Qxd5 {[%clk 0:01:18.9]} 20... Qb6 {[%clk 0:01:11.8]} 21. Qb3
{[%clk 0:01:07]} 21... Rad8 {[%clk 0:00:38.8]} 22. Rxd8 {[%clk 0:01:06.7]} 22...
Qxd8 {[%clk 0:00:37.3]} 23. Nxe5 {[%clk 0:01:06.9]} 23... Re7 {[%clk 0:00:22.5]}
24. Nxf7 {[%clk 0:01:01.4]} 24... Rxf7 {[%clk 0:00:20.4]} 25. Nd6 {[%clk
0:01:01.5]} 25... Qf6 {[%clk 0:00:19.3]} 26. Nxf7 {[%clk 0:00:47.9]} 26... Qxf7
{[%clk 0:00:20.2]} 27. Re8+ {[%clk 0:00:47.6]} 27... Kg7 {[%clk 0:00:20.3]} 28.
Be5+ {[%clk 0:00:48.3]} 1-0

[Event "*** Titled Tuesday Blitz"]
[Site "Chess.com"]
[Date "2020.05.19"]
[Round "4"]
[White "viviania"]
[Black "Norival"]
[Result "1-0"]
[WhiteElo "2935"]
[BlackElo "2674"]
[TimeControl "180+1"]
[EndTime "12:39:30 PDT"]
[Termination "viviania won by resignation"]

1. e4 {[%clk 0:02:59.4]} 1... e5 {[%clk 0:02:54.8]} 2. Nf3 {[%clk 0:02:58.8]}
2... Nc6 {[%clk 0:02:54]} 3. d4 {[%clk 0:02:58.8]} 3... exd4 {[%clk 0:02:53.2]}
4. c3 {[%clk 0:02:58.8]} 4... dxc3 {[%clk 0:02:51.9]} 5. Nxc3 {[%clk 0:02:58.4]}
5... d6 {[%clk 0:02:51.7]} 6. Bc4 {[%clk 0:02:57.9]} 6... Be6 {[%clk 0:02:27.7]}
7. Bxe6 {[%clk 0:02:57]} 7... fxe6 {[%clk 0:02:27.8]} 8. Qb3 {[%clk 0:02:56.8]}
8... Qc8 {[%clk 0:02:27.8]} 9. Ng5 {[%clk 0:02:55.5]} 9... Nd8 {[%clk
0:02:27.3]} 10. f4 {[%clk 0:02:51.6]} 10... Be7 {[%clk 0:02:26.1]} 11. O-O
{[%clk 0:02:42.6]} 11... Bxg5 {[%clk 0:02:18.3]} 12. Qb5+ {[%clk 0:02:15.6]}
12... Qd7 {[%clk 0:02:17.5]} 13. Qxg5 {[%clk 0:02:15.3]} 13... Qf7 {[%clk
0:01:53.5]} 14. Be3 {[%clk 0:02:02.1]} 14... Ne7 {[%clk 0:01:52]} 15. f5 {[%clk
0:01:59.5]} 15... O-O {[%clk 0:01:40]} 16. f6 {[%clk 0:01:42.8]} 16... Ng6
{[%clk 0:01:39.7]} 17. fxg7 {[%clk 0:01:39]} 17... Qxg7 {[%clk 0:01:39.7]} 18.
Rxf8+ {[%clk 0:01:27.4]} 18... Nxf8 {[%clk 0:01:36.8]} 19. Qb5 {[%clk
0:01:24.7]} 19... a6 {[%clk 0:01:32.5]} 20. Qb3 {[%clk 0:01:23.8]} 20... Ng6
{[%clk 0:01:22.5]} 21. Rf1 {[%clk 0:01:21.9]} 21... Rc8 {[%clk 0:01:13.2]} 22.
Ne2 {[%clk 0:01:13.9]} 22... c5 {[%clk 0:01:10.2]} 23. Ng3 {[%clk 0:01:09.7]}
23... Qe5 {[%clk 0:01:01.1]} 24. Bh6 {[%clk 0:01:01.8]} 24... b5 {[%clk
0:00:56]} 25. Qf3 {[%clk 0:00:54.9]} 25... Nc6 {[%clk 0:00:35.7]} 26. Qf7+
{[%clk 0:00:48.2]} 26... Kh8 {[%clk 0:00:36.3]} 27. Nh5 {[%clk 0:00:46.5]} 27...
Rg8 {[%clk 0:00:34.3]} 28. Nf6 {[%clk 0:00:41.3]} 1-0

[Event "*** Titled Tuesday Blitz"]
[Site "Chess.com"]
[Date "2020.05.19"]
[Round "4"]
[White "PowerThinking2650"]
[Black "NormWeinstein"]
[Result "1-0"]
[WhiteElo "2296"]
[BlackElo "2440"]
[TimeControl "180+1"]
[EndTime "12:39:34 PDT"]
[Termination "PowerThinking2650 won by resignation"]

1. e4 {[%clk 0:03:00.9]} 1... c5 {[%clk 0:02:59.9]} 2. Nf3 {[%clk 0:03:01.1]}
2... d6 {[%clk 0:03:00.4]} 3. d4 {[%clk 0:03:01.5]} 3... Nf6 {[%clk 0:03:00.8]}
4. Nc3 {[%clk 0:03:01.1]} 4... cxd4 {[%clk 0:03:01.3]} 5. Nxd4 {[%clk
0:03:01.9]} 5... Nc6 {[%clk 0:03:01.6]} 6. Bc4 {[%clk 0:03:00.6]} 6... Qb6
{[%clk 0:03:00.8]} 7. Ndb5 {[%clk 0:02:59.9]} 7... a6 {[%clk 0:03:00.4]} 8. Be3
{[%clk 0:02:59.2]} 8... Qa5 {[%clk 0:03:00.9]} 9. Nd4 {[%clk 0:02:59.4]} 9... e6
{[%clk 0:03:01.3]} 10. O-O {[%clk 0:02:50.3]} 10... Be7 {[%clk 0:03:01.3]} 11.
Nb3 {[%clk 0:02:42.9]} 11... Qc7 {[%clk 0:03:00.4]} 12. Be2 {[%clk 0:02:42]}
12... b5 {[%clk 0:02:59.6]} 13. a3 {[%clk 0:02:27]} 13... Bb7 {[%clk 0:02:59.4]}
14. f4 {[%clk 0:02:26.9]} 14... O-O {[%clk 0:02:59]} 15. Qe1 {[%clk 0:02:26.9]}
15... Rac8 {[%clk 0:02:58.2]} 16. Qg3 {[%clk 0:02:25.4]} 16... Na5 {[%clk
0:02:52.3]} 17. Nxa5 {[%clk 0:02:21.9]} 17... Qxa5 {[%clk 0:02:52.1]} 18. Bd3
{[%clk 0:02:13.1]} 18... g6 {[%clk 0:02:44.5]} 19. f5 {[%clk 0:02:08.2]} 19...
Qc7 {[%clk 0:01:48.5]} 20. Bh6 {[%clk 0:01:40.3]} 20... Rfe8 {[%clk 0:01:48]}
21. fxe6 {[%clk 0:01:40.6]} 21... fxe6 {[%clk 0:01:47.4]} 22. e5 {[%clk
0:01:41]} 22... Qc5+ {[%clk 0:01:35.5]} 23. Kh1 {[%clk 0:01:23.6]} 23... Qxe5
{[%clk 0:01:34.3]} 24. Qh3 {[%clk 0:01:16.8]} 24... Bf8 {[%clk 0:00:56.2]} 25.
Bxf8 {[%clk 0:01:01.7]} 25... Rxf8 {[%clk 0:00:52.7]} 26. Rae1 {[%clk
0:01:01.5]} 26... Qh5 {[%clk 0:00:49.5]} 27. Qxe6+ {[%clk 0:01:00.6]} 27... Kg7
{[%clk 0:00:44.5]} 28. Qxd6 {[%clk 0:00:46.9]} 28... Rf7 {[%clk 0:00:25.2]} 29.
Re7 {[%clk 0:00:45.6]} 29... Rf8 {[%clk 0:00:24.7]} 30. Qxf6+ {[%clk 0:00:44.6]}
30... Kg8 {[%clk 0:00:25.1]} 31. Rxf7 {[%clk 0:00:43.9]} 1-0

[Event "*** Titled Tuesday Blitz"]
[Site "Chess.com"]
[Date "2020.05.19"]
[Round "4"]
[White "PredragNikac"]
[Black "WhiteCapital80"]
[Result "1-0"]
[WhiteElo "2284"]
[BlackElo "2433"]
[TimeControl "180+1"]
[EndTime "12:39:34 PDT"]
[Termination "PredragNikac won by resignation"]

1. d4 {[%clk 0:03:00.9]} 1... e6 {[%clk 0:03:00.2]} 2. Bf4 {[%clk 0:02:59]} 2...
Nf6 {[%clk 0:02:59.5]} 3. e3 {[%clk 0:02:58.6]} 3... c5 {[%clk 0:02:59.2]} 4.
Nf3 {[%clk 0:02:56.9]} 4... Nc6 {[%clk 0:02:56.5]} 5. c3 {[%clk 0:02:56.5]} 5...
Nh5 {[%clk 0:02:48.4]} 6. Bg3 {[%clk 0:02:54.7]} 6... b6 {[%clk 0:02:42.8]} 7.
Nbd2 {[%clk 0:02:53.9]} 7... Bb7 {[%clk 0:02:41.2]} 8. Bd3 {[%clk 0:02:52]} 8...
Be7 {[%clk 0:02:35.3]} 9. a3 {[%clk 0:02:43.5]} 9... d5 {[%clk 0:02:33.4]} 10.
b4 {[%clk 0:02:40.8]} 10... Nxg3 {[%clk 0:02:27.2]} 11. hxg3 {[%clk 0:02:39.8]}
11... h6 {[%clk 0:02:27.7]} 12. b5 {[%clk 0:02:36]} 12... Na5 {[%clk 0:02:25.6]}
13. Ne5 {[%clk 0:02:34.1]} 13... Bf6 {[%clk 0:02:21.9]} 14. Qh5 {[%clk 0:02:31]}
14... Bxe5 {[%clk 0:02:15.3]} 15. Qxe5 {[%clk 0:02:29.8]} 15... Qf6 {[%clk
0:02:11.9]} 16. Qxf6 {[%clk 0:02:19.5]} 16... gxf6 {[%clk 0:02:11.8]} 17. g4
{[%clk 0:02:10.6]} 17... Kf8 {[%clk 0:02:09.7]} 18. Rh5 {[%clk 0:02:04.3]} 18...
Kg7 {[%clk 0:02:08.9]} 19. Ke2 {[%clk 0:02:00.4]} 19... Rac8 {[%clk 0:02:07.8]}
20. Rah1 {[%clk 0:01:55.5]} 20... Rce8 {[%clk 0:01:54.4]} 21. f4 {[%clk
0:01:52.9]} 21... Bc8 {[%clk 0:01:52.4]} 22. R1h4 {[%clk 0:01:46.8]} 22... Nb7
{[%clk 0:01:46.7]} 23. Nf3 {[%clk 0:01:40.2]} 23... Nd6 {[%clk 0:01:46.2]} 24.
a4 {[%clk 0:01:38.6]} 24... cxd4 {[%clk 0:01:23.4]} 25. cxd4 {[%clk 0:01:35.8]}
25... Bb7 {[%clk 0:01:18.1]} 26. g5 {[%clk 0:01:30.3]} 26... hxg5 {[%clk
0:01:16]} 27. Rh7+ {[%clk 0:01:29.4]} 27... Rxh7 {[%clk 0:01:14.6]} 28. Rxh7+
{[%clk 0:01:28.6]} 28... Kg8 {[%clk 0:01:13.2]} 29. fxg5 {[%clk 0:01:27.4]}
29... Ne4 {[%clk 0:01:11.2]} 30. g6 {[%clk 0:01:25.3]} 30... Re7 {[%clk
0:01:02]} 31. Nd2 {[%clk 0:01:00.7]} 31... Nc3+ {[%clk 0:00:55]} 32. Ke1 {[%clk
0:00:51.1]} 32... f5 {[%clk 0:00:53.7]} 33. Nf3 {[%clk 0:00:41.6]} 33... Kf8
{[%clk 0:00:49.8]} 34. Ne5 {[%clk 0:00:38.5]} 34... f6 {[%clk 0:00:48.7]} 35.
Rxe7 {[%clk 0:00:36.4]} 35... Kxe7 {[%clk 0:00:48.8]} 36. g7 {[%clk 0:00:36.1]}
1-0

[Event "*** Titled Tuesday Blitz"]
[Site "Chess.com"]
[Date "2020.05.19"]
[Round "4"]
[White "ama18"]
[Black "Lagmantr"]
[Result "0-1"]
[WhiteElo "2490"]
[BlackElo "2682"]
[TimeControl "180+1"]
[EndTime "12:39:41 PDT"]
[Termination "Lagmantr won by resignation"]

1. e4 {[%clk 0:03:00.9]} 1... c6 {[%clk 0:03:00.2]} 2. Nc3 {[%clk 0:02:58.8]}
2... d5 {[%clk 0:03:01.1]} 3. Nf3 {[%clk 0:02:59.7]} 3... dxe4 {[%clk
0:03:01.2]} 4. Nxe4 {[%clk 0:03:00.6]} 4... Nf6 {[%clk 0:03:02.1]} 5. Qe2 {[%clk
0:03:00.8]} 5... Nxe4 {[%clk 0:03:00.6]} 6. Qxe4 {[%clk 0:03:01.7]} 6... g6
{[%clk 0:03:00.1]} 7. d4 {[%clk 0:02:39.4]} 7... Bg7 {[%clk 0:02:54.9]} 8. c3
{[%clk 0:02:38.1]} 8... O-O {[%clk 0:02:54.4]} 9. Qh4 {[%clk 0:02:36.8]} 9...
Re8 {[%clk 0:02:47]} 10. Bc4 {[%clk 0:02:32.7]} 10... e5 {[%clk 0:02:05.3]} 11.
Ng5 {[%clk 0:01:31.5]} 11... exd4+ {[%clk 0:01:53.7]} 12. Kf1 {[%clk 0:01:18.5]}
12... dxc3 {[%clk 0:01:35.3]} 13. Bxf7+ {[%clk 0:01:16.4]} 13... Kf8 {[%clk
0:01:33.9]} 14. Be3 {[%clk 0:00:39.7]} 14... Qd3+ {[%clk 0:01:06.8]} 15. Kg1
{[%clk 0:00:39.3]} 15... Rxe3 {[%clk 0:01:06.9]} 16. fxe3 {[%clk 0:00:30.5]}
16... Qxe3+ {[%clk 0:00:52.6]} 17. Qf2 {[%clk 0:00:13.8]} 17... Bd4 {[%clk
0:00:50.8]} 18. Nxh7+ {[%clk 0:00:06.8]} 18... Kg7 {[%clk 0:00:49.7]} 19. Qxe3
{[%clk 0:00:07]} 19... Bxe3+ {[%clk 0:00:49.6]} 20. Kf1 {[%clk 0:00:07.9]} 20...
cxb2 {[%clk 0:00:44.7]} 21. Rb1 {[%clk 0:00:06.9]} 21... Bc1 {[%clk 0:00:43.6]}
22. Be6 {[%clk 0:00:01.6]} 22... Bxe6 {[%clk 0:00:43]} 0-1

[Event "*** Titled Tuesday Blitz"]
[Site "Chess.com"]
[Date "2020.05.19"]
[Round "4"]
[White "savagemedusa"]
[Black "Nikithebest"]
[Result "0-1"]
[WhiteElo "2258"]
[BlackElo "2448"]
[TimeControl "180+1"]
[EndTime "12:39:42 PDT"]
[Termination "Nikithebest won by resignation"]

1. d4 {[%clk 0:03:00.9]} 1... Nf6 {[%clk 0:02:58.2]} 2. c4 {[%clk 0:02:58.6]}
2... c5 {[%clk 0:02:58.3]} 3. d5 {[%clk 0:02:55.6]} 3... b5 {[%clk 0:02:58.5]}
4. cxb5 {[%clk 0:02:55.1]} 4... a6 {[%clk 0:02:58.5]} 5. bxa6 {[%clk 0:02:51.5]}
5... g6 {[%clk 0:02:58.3]} 6. Nc3 {[%clk 0:02:49.1]} 6... Bg7 {[%clk 0:02:58.4]}
7. e4 {[%clk 0:02:48.2]} 7... O-O {[%clk 0:02:58.9]} 8. Bd3 {[%clk 0:02:46.1]}
8... Qa5 {[%clk 0:02:58.7]} 9. Ne2 {[%clk 0:02:33.6]} 9... Bxa6 {[%clk
0:02:52.7]} 10. O-O {[%clk 0:02:31.5]} 10... e6 {[%clk 0:02:51.7]} 11. Bf4
{[%clk 0:02:16.9]} 11... c4 {[%clk 0:02:44.5]} 12. Bc2 {[%clk 0:02:11]} 12...
exd5 {[%clk 0:02:37.2]} 13. exd5 {[%clk 0:01:48.8]} 13... Bb7 {[%clk 0:02:36.7]}
14. Bd6 {[%clk 0:01:41.1]} 14... Re8 {[%clk 0:02:34.1]} 15. Nf4 {[%clk
0:01:38.6]} 15... Na6 {[%clk 0:02:12.7]} 16. a3 {[%clk 0:01:07.3]} 16... Nc7
{[%clk 0:02:10.7]} 17. Bb4 {[%clk 0:01:03.4]} 17... Qa6 {[%clk 0:02:07.4]} 18.
d6 {[%clk 0:01:02.6]} 18... Qc6 {[%clk 0:01:46.3]} 19. f3 {[%clk 0:00:52]} 19...
Na6 {[%clk 0:01:45.9]} 20. Ne4 {[%clk 0:00:48.5]} 20... Nxb4 {[%clk 0:01:44.1]}
21. Nxf6+ {[%clk 0:00:46.6]} 21... Bxf6 {[%clk 0:01:43.7]} 22. axb4 {[%clk
0:00:43.4]} 22... Bxb2 {[%clk 0:01:38.8]} 23. Rxa8 {[%clk 0:00:42.2]} 23... Rxa8
{[%clk 0:01:34.4]} 24. Be4 {[%clk 0:00:41.8]} 24... Qb6+ {[%clk 0:01:33.6]} 25.
Kh1 {[%clk 0:00:36.1]} 25... Ra1 {[%clk 0:01:33.4]} 26. Qe2 {[%clk 0:00:27.2]}
26... Rxf1+ {[%clk 0:01:31.7]} 27. Qxf1 {[%clk 0:00:27.1]} 27... Bxe4 {[%clk
0:01:31.6]} 28. fxe4 {[%clk 0:00:26.9]} 28... Qxb4 {[%clk 0:01:25.8]} 29. Qd1
{[%clk 0:00:17.5]} 29... Qb3 {[%clk 0:01:09.1]} 30. Qf1 {[%clk 0:00:08.5]} 30...
c3 {[%clk 0:01:04.8]} 31. Nd5 {[%clk 0:00:08.5]} 31... c2 {[%clk 0:01:03.2]} 32.
Ne7+ {[%clk 0:00:08.9]} 32... Kg7 {[%clk 0:01:02.5]} 33. e5 {[%clk 0:00:08.4]}
33... c1=Q {[%clk 0:01:00.6]} 34. Qxc1 {[%clk 0:00:07.6]} 34... Bxc1 {[%clk
0:01:00.6]} 0-1

[Event "*** Titled Tuesday Blitz"]
[Site "Chess.com"]
[Date "2020.05.19"]
[Round "4"]
[White "Enriquack"]
[Black "Charlottemillard17"]
[Result "1-0"]
[WhiteElo "2304"]
[BlackElo "1418"]
[TimeControl "180+1"]
[EndTime "12:39:44 PDT"]
[Termination "Enriquack won by checkmate"]

1. e4 {[%clk 0:03:00.9]} 1... e5 {[%clk 0:02:58.1]} 2. Nf3 {[%clk 0:03:00.8]}
2... Nc6 {[%clk 0:02:57.8]} 3. Bb5 {[%clk 0:03:01.1]} 3... a6 {[%clk 0:02:57]}
4. Ba4 {[%clk 0:03:01]} 4... Bc5 {[%clk 0:02:55.7]} 5. O-O {[%clk 0:02:56.7]}
5... b5 {[%clk 0:02:54.6]} 6. Bb3 {[%clk 0:02:56.6]} 6... Nf6 {[%clk 0:02:54.3]}
7. c3 {[%clk 0:02:55]} 7... h6 {[%clk 0:02:51.9]} 8. d4 {[%clk 0:02:55.1]} 8...
exd4 {[%clk 0:02:51.3]} 9. cxd4 {[%clk 0:02:56]} 9... Bb4 {[%clk 0:02:45.6]} 10.
e5 {[%clk 0:02:29.6]} 10... Nh7 {[%clk 0:02:09.9]} 11. d5 {[%clk 0:02:24.3]}
11... Na5 {[%clk 0:01:58.8]} 12. Bc2 {[%clk 0:02:24.1]} 12... O-O {[%clk
0:01:47.4]} 13. a3 {[%clk 0:01:54.2]} 13... Be7 {[%clk 0:01:34.1]} 14. Qd3
{[%clk 0:01:45.9]} 14... g6 {[%clk 0:01:15.7]} 15. Bxh6 {[%clk 0:01:44.6]} 15...
Re8 {[%clk 0:01:13.6]} 16. Nc3 {[%clk 0:01:34.7]} 16... Bg5 {[%clk 0:00:58.5]}
17. Nxg5 {[%clk 0:01:13.6]} 17... Nxg5 {[%clk 0:00:57.1]} 18. Qg3 {[%clk
0:01:04.5]} 18... f6 {[%clk 0:00:15]} 19. exf6 {[%clk 0:01:01.5]} 19... Qxf6
{[%clk 0:00:14.7]} 20. Bxg5 {[%clk 0:01:00.8]} 20... Qd6 {[%clk 0:00:13.3]} 21.
Bf4 {[%clk 0:01:00.1]} 21... Qf6 {[%clk 0:00:12.7]} 22. Bxg6 {[%clk 0:00:59.8]}
22... Kg7 {[%clk 0:00:10.9]} 23. Bxe8+ {[%clk 0:00:59.6]} 23... Kf8 {[%clk
0:00:10.4]} 24. Rfe1 {[%clk 0:00:58.3]} 24... d6 {[%clk 0:00:09.3]} 25. Bg5
{[%clk 0:00:50.8]} 25... Qf5 {[%clk 0:00:07.7]} 26. Qh4 {[%clk 0:00:49.4]} 26...
Qxd5 {[%clk 0:00:07.2]} 27. Nxd5 {[%clk 0:00:48.2]} 27... Bb7 {[%clk 0:00:05.2]}
28. Qh8# {[%clk 0:00:47.9]} 1-0

[Event "*** Titled Tuesday Blitz"]
[Site "Chess.com"]
[Date "2020.05.19"]
[Round "4"]
[White "GMALMEIDA"]
[Black "kingofthenil"]
[Result "1-0"]
[WhiteElo "2684"]
[BlackElo "2490"]
[TimeControl "180+1"]
[EndTime "12:39:45 PDT"]
[Termination "GMALMEIDA won on time"]

1. d4 {[%clk 0:03:00.9]} 1... Nf6 {[%clk 0:02:57.9]} 2. c4 {[%clk 0:03:00.3]}
2... c5 {[%clk 0:02:51.6]} 3. d5 {[%clk 0:02:57.5]} 3... e6 {[%clk 0:02:52.5]}
4. Nc3 {[%clk 0:02:56.7]} 4... exd5 {[%clk 0:02:47.8]} 5. cxd5 {[%clk
0:02:57.6]} 5... d6 {[%clk 0:02:48.7]} 6. e4 {[%clk 0:02:54.9]} 6... g6 {[%clk
0:02:45.6]} 7. Nf3 {[%clk 0:02:53.9]} 7... Bg7 {[%clk 0:02:43.3]} 8. h3 {[%clk
0:02:53.5]} 8... Nbd7 {[%clk 0:02:39.6]} 9. Bd3 {[%clk 0:02:51.9]} 9... a6
{[%clk 0:02:39.3]} 10. a4 {[%clk 0:02:50.9]} 10... Nh5 {[%clk 0:02:39.1]} 11.
O-O {[%clk 0:02:46.4]} 11... Ne5 {[%clk 0:02:34.8]} 12. Be2 {[%clk 0:02:45.8]}
12... Nxf3+ {[%clk 0:02:30.9]} 13. Bxf3 {[%clk 0:02:46.7]} 13... Qh4 {[%clk
0:02:31.8]} 14. Bg4 {[%clk 0:02:46.1]} 14... Be5 {[%clk 0:02:05.6]} 15. Bxc8
{[%clk 0:02:39.4]} 15... Rxc8 {[%clk 0:02:06.5]} 16. Qg4 {[%clk 0:02:37.6]}
16... Qxg4 {[%clk 0:01:59.9]} 17. hxg4 {[%clk 0:02:38.5]} 17... Nf6 {[%clk
0:02:00.8]} 18. f3 {[%clk 0:02:32.9]} 18... h5 {[%clk 0:01:46.8]} 19. g5 {[%clk
0:02:31.9]} 19... Bd4+ {[%clk 0:01:35.8]} 20. Kh2 {[%clk 0:02:30.5]} 20... Nd7
{[%clk 0:01:18.2]} 21. Ne2 {[%clk 0:02:29.4]} 21... Ne5 {[%clk 0:01:14.1]} 22.
Bf4 {[%clk 0:02:19.3]} 22... Kd7 {[%clk 0:01:03.2]} 23. Rfd1 {[%clk 0:02:08.6]}
23... Bf2 {[%clk 0:00:34.9]} 24. Rac1 {[%clk 0:01:49.3]} 24... b5 {[%clk
0:00:22]} 25. b3 {[%clk 0:01:38.4]} 25... bxa4 {[%clk 0:00:14.7]} 26. bxa4
{[%clk 0:01:39.3]} 26... Rb8 {[%clk 0:00:05.6]} 27. Rb1 {[%clk 0:01:33.2]} 27...
Kc7 {[%clk 0:00:03.1]} 28. g3 {[%clk 0:01:26.8]} 28... Bd4 {[%clk 0:00:01.2]}
29. Rxb8 {[%clk 0:01:21.7]} 29... Rxb8 {[%clk 0:00:01.3]} 30. Kg2 {[%clk
0:01:21.7]} 30... Rb2 {[%clk 0:00:01.3]} 31. Rd2 {[%clk 0:01:21.5]} 31... Rxd2
{[%clk 0:00:01.5]} 32. Bxd2 {[%clk 0:01:22.4]} 32... Nc4 {[%clk 0:00:01.8]} 33.
Be1 {[%clk 0:01:18.8]} 33... Nb2 {[%clk 0:00:01.7]} 34. a5 {[%clk 0:01:17.6]}
1-0

[Event "*** Titled Tuesday Blitz"]
[Site "Chess.com"]
[Date "2020.05.19"]
[Round "4"]
[White "Mikasinski"]
[Black "TregubovP"]
[Result "0-1"]
[WhiteElo "2348"]
[BlackElo "2559"]
[TimeControl "180+1"]
[EndTime "12:39:45 PDT"]
[Termination "TregubovP won by checkmate"]

1. e4 {[%clk 0:03:00.9]} 1... e6 {[%clk 0:02:59.5]} 2. d4 {[%clk 0:03:00.2]}
2... d5 {[%clk 0:02:59.2]} 3. Nc3 {[%clk 0:03:00.2]} 3... Bb4 {[%clk 0:02:58.4]}
4. e5 {[%clk 0:03:00]} 4... c5 {[%clk 0:02:58.3]} 5. a3 {[%clk 0:02:59.7]} 5...
Ba5 {[%clk 0:02:58.9]} 6. Bd2 {[%clk 0:02:58.6]} 6... Nc6 {[%clk 0:02:57.3]} 7.
Nb5 {[%clk 0:02:45.4]} 7... Nxd4 {[%clk 0:02:37.6]} 8. b4 {[%clk 0:02:04.8]}
8... Bc7 {[%clk 0:02:34.6]} 9. Nxd4 {[%clk 0:02:01.4]} 9... cxd4 {[%clk
0:02:33.7]} 10. Nf3 {[%clk 0:02:02]} 10... Ne7 {[%clk 0:02:30.8]} 11. Bf4 {[%clk
0:01:43.9]} 11... Ng6 {[%clk 0:02:14.9]} 12. Bg3 {[%clk 0:01:40.1]} 12... O-O
{[%clk 0:02:14.2]} 13. Qxd4 {[%clk 0:01:38.2]} 13... f6 {[%clk 0:02:13]} 14.
exf6 {[%clk 0:01:35.1]} 14... e5 {[%clk 0:01:51.4]} 15. Qd2 {[%clk 0:01:26.7]}
15... Qxf6 {[%clk 0:01:42.6]} 16. Qxd5+ {[%clk 0:01:23.1]} 16... Be6 {[%clk
0:01:42.6]} 17. Qe4 {[%clk 0:01:16.3]} 17... Bf5 {[%clk 0:01:34.1]} 18. Qc4+
{[%clk 0:01:11.8]} 18... Rf7 {[%clk 0:01:27.8]} 19. Rd1 {[%clk 0:01:05.9]} 19...
e4 {[%clk 0:01:08.7]} 20. Nd4 {[%clk 0:01:00.5]} 20... Bxg3 {[%clk 0:01:02.5]}
21. hxg3 {[%clk 0:01:00.1]} 21... Rc8 {[%clk 0:01:02.4]} 22. Qb3 {[%clk
0:00:57.7]} 22... Be6 {[%clk 0:00:56.5]} 23. Qe3 {[%clk 0:00:50.4]} 23... Rc3
{[%clk 0:00:56]} 24. Qd2 {[%clk 0:00:41.6]} 24... Bd5 {[%clk 0:00:42.1]} 25. Rh5
{[%clk 0:00:04.6]} 25... e3 {[%clk 0:00:41.7]} 26. fxe3 {[%clk 0:00:04.6]} 26...
Qxf1# {[%clk 0:00:41.4]} 0-1